Cogmind - Beta 13 *** ADVENTURER MODE // 2024.05.28 @ 22:40:40 Player: chimpy Result: Destroyed self with Mini Grenade Launcher Performance ------------- Evolutions (0) 0 Regions Visited (2) 400 Robots Destroyed (10) 50 Value Destroyed (182) 182 Prototype IDs (0) 0 Alien Tech Used (0) 0 Bonus (0) 0 TOTAL SCORE: 632 Bonus ------- None Cogmind --------- Core Integrity 0/250 Matter 218/300 Energy 100/100 System Corruption 4% Temperature Cool (0) Movement Core (50) Location -10/Mines Parts ------- > --- POWER (1) -------- (None) > --- PROPULSION (2) --- (None) > --- UTILITY (2) ------ (None) > --- WEAPON (2) ------- Mini Grenade Launcher > --- INVENTORY (5) ---- Ion Engine Light Ion Engine Aluminum Leg Peak State ------------ > --- POWER ------------ Light Ion Engine > --- PROPULSION ------- VTOL Module VTOL Module > --- UTILITY ---------- Structural Scanner Signal Interpreter > --- WEAPON ----------- Light Assault Rifle Datajack > --- INVENTORY -------- Light Ion Engine Light Ion Engine Aluminum Leg Aluminum Leg Mini Grenade Launcher [Rating: 9] Favorites ----------- Power Light Ion Engine Engine Light Ion Engine Propulsion VTOL Module Treads Light Treads Leg Aluminum Leg Flight Unit VTOL Module Utility Terrain Scanner Device Terrain Scanner Storage Small Storage Unit Processor Signal Interpreter Weapon Light Assault Rifle Energy Gun EM Pulse Gun Ballistic Gun Light Assault Rifle Launcher Mini Grenade Launcher Special Weapon Welding Torch Special Melee Weapon Datajack Build | -11 -10 -10 ------- Run | Yrd Mat Min Slots Evolved . | . . . Power . | . . . Propulsion . | . . . Utility . | . . . Weapon . | . . . Parts Attached 24 | 6 18 . Power 2 | 1 1 . Engine 2 | 1 1 . Core . | . . . Reactor . | . . . Propulsion 10 | 2 8 . Treads 2 | 2 . . Leg 4 | . 4 . Wheel . | . . . Hover . | . . . Flight 4 | . 4 . Utility 6 | 1 5 . Device 4 | . 4 . Storage 1 | 1 . . Processor 1 | . 1 . Hackware . | . . . Protection . | . . . Artifact . | . . . Weapon 6 | 2 4 . Energy Gun 1 | 1 . . Energy Cannon . | . . . Ballistic Gun 1 | 1 . . Ballistic Cannon . | . . . Launcher 1 | . 1 . Special Weapon 1 | . 1 . Impact Weapon . | . . . Slashing Weapon . | . . . Piercing Weapon . | . . . Special Melee Weapon 2 | . 2 . Unidentified Prototypes . | . . . Parts Lost 9 | . 3 6 Power 2 | . 1 1 Propulsion 3 | . 1 2 Utility 2 | . . 2 Weapon 2 | . 1 1 Highest Loss Streak 6 | . 3 6 To Critical Strikes . | . . . Average Slot Usage (%) 86 | . 86 85 Engine 12 | . 13 . Treads 1 | . 1 . Leg 6 | . 6 28 Flight 19 | . 19 . Device 15 | . 15 28 Storage 2 | . 2 . Processor 2 | . 2 . Ballistic Gun 14 | . 14 14 Launcher 2 | . 2 14 Special Melee Weapon 7 | . 8 . Naked Turns . | . . . Heaviest Build 11 | 11 11 7 Greatest Support 40 | 40 40 20 Greatest Overweight (x) . | . . . Average Overweight (x) . | . . . Largest Inventory Capacity 8 | 8 8 5 Average Capacity 5 | 7 5 5 Most Carried 8 | 7 8 3 Average Carried 4 | 3 5 3 Final Capacity 8 | 8 5 5 Final Carried 7 | 7 3 3 Class Distribution -------------------- 59% | Sprinter 40% | Mutant Dominant Class ---------------- Sprinter | -10/Materials Sprinter | -10/Mines Resources | -11 -10 -10 ----------- Run | Yrd Mat Min Matter Collected 427 | 264 163 . Remotely . | . . . Salvage Created 283 | 113 163 7 Parts 24 | 6 18 . Haulers Intercepted . | . . . Recyclers Shooed . | . . . Parts Field Recycled . | . . . Retrieved Matter . | . . . Parts Self-Destructed . | . . . Prevented . | . . . Kills | -11 -10 -10 ------- Run | Yrd Mat Min Combat Hostiles Destroyed 18 | . 5 13 Guns 4 | . 4 . AOE 14 | . 1 13 Classes Destroyed 7 | 2 4 1 Builder 1 | . 1 . Tunneler 2 | 1 1 . Recycler 1 | 1 . . Watcher 1 | . 1 . Swarmer 3 | . 3 . Grunt 2 | . 2 . Assembled 13 | . . 13 Best Kill Streak 13 | 2 4 13 Combat Bots Only 13 | . 3 13 Max Kills in Single Turn 5 | 1 1 5 Gunslinging . | . . . Exploded 5 | . 1 5 Melee . | . . . Uniques/NPCs Destroyed . | . . . Combat | -11 -10 -10 -------- Run | Yrd Mat Min Hostile Shots Fired 68 | . 39 29 Missed 20 | . 14 6 Damage Taken 683 | . 253 430 Core 252 | . 97 155 Absorbed by Shields . | . . . Ignored by Resistances 202 | . 78 124 Core Remaining (%) 100 | 100 . . Volleys Fired 60 | 4 50 6 Largest 2 | 2 2 2 Hottest 60 | 60 50 50 Shots Fired 66 | 8 51 7 Gun 58 | 8 48 2 Cannon . | . . . Launcher 6 | . 1 5 Special 2 | . 2 . Kinetic 54 | 4 48 2 Thermal 2 | . 2 . Explosive 6 | . 1 5 Electromagnetic 4 | 4 . . Robot Hit Streak 17 | 7 17 3 Robot Miss Streak 2 | . 2 2 Penetration Max . | . . . Secondary Targets . | . . . Shots Hit Robots 63 | 7 53 3 Core Hits 41 | 3 14 24 Critical Kills 1 | . 1 . Critical Parts Destroyed . | . . . Critical Strikes 2 | 1 1 . Destroy 1 | . 1 . Corrupt 1 | 1 . . Melee Attacks 14 | . 14 . Impact . | . . . Slashing . | . . . Piercing . | . . . Sneak Attacks 10 | . 10 . Combat Hostiles . | . . . Follow-up Attacks . | . . . Damage Inflicted 1691 | 75 345 1271 Guns 387 | 75 306 6 Cannons . | . . . Explosions 1304 | . 39 1265 Melee . | . . . Ramming . | . . . Kinetic 334 | 22 306 6 Thermal . | . . . Explosive 1304 | . 39 1265 Electromagnetic 53 | 53 . . Impact . | . . . Slashing . | . . . Piercing . | . . . Highest Corruption 4 | . . 4 Average Corruption 4 | . . 4 Corruption Purged . | . . . Corruption Blocked . | . . . Effects 1 | . . 1 Weapon Failures 1 | . . 1 Overload Shots . | . . . Overflow Damage 61 | . . 61 Projectiles . | . . . Explosions 61 | . . 61 Melee . | . . . Knockbacks . | . . . Impact . | . . . Kinetic . | . . . Secondary . | . . . Self-Inflicted Damage 160 | . 21 139 Shots 6 | . 1 5 Rammed . | . . . Targets Rammed . | . . . Kicked . | . . . Crushed . | . . . Highest Temperature 40 | 40 20 15 Average Temperature 7 | 16 3 12 Received Heat Transfer 229 | . 189 40 Siege Activations . | . . . Robots Corrupted . | . . . Combat Hostiles . | . . . Parts Fried . | . . . Impact Corruptions . | . . . Robots Melted . | . . . Combat Hostiles . | . . . Parts Melted . | . . . Heat Transferred . | . . . Parts Sabotaged . | . . . Parts Stolen . | . . . Parts Stripped . | . . . Power Chain Reactions . | . . . Alert | -11 -10 -10 ------- Run | Yrd Mat Min Peak Influence 197 | 10 197 71 Initial 64 | . 5 64 Average 84 | 3 104 52 Maximum Alert Level . | . . . Low Security (%) 100 | 100 100 100 Level 1 . | . . . Level 2 . | . . . Level 3 . | . . . Level 4 . | . . . Level 5 . | . . . High Security . | . . . Max Security . | . . . Squads Dispatched . | . . . Investigation . | . . . Extermination . | . . . Reinforcement . | . . . Assault . | . . . Garrison . | . . . Intercept . | . . . Searches Triggered . | . . . Construction Impeded . | . . . Haulers Reinforced . | . . . Active Scanning Responses . | . . . Cargo Convoy Interrupts . | . . . Stealth | -11 -10 -10 --------- Run | Yrd Mat Min Distress Signals . | . . . Communications Jammed . | . . . Distress Signals . | . . . Times Spotted 28 | . 9 19 Peak Tracking Total 20 | . 3 20 Tactical Retreats . | . . . Traps | -11 -10 -10 ------- Run | Yrd Mat Min Traps Triggered . | . . . Indirectly . | . . . Trap Hack Attempts . | . . . Triggered . | . . . Disarmed . | . . . Reprogrammed . | . . . Reused . | . . . Traps Extracted . | . . . Installed . | . . . Triggered . | . . . Machines | -11 -10 -10 ---------- Run | Yrd Mat Min Machines Disabled 3 | . 3 . Max in Single Turn 2 | . 2 . Machines Repaired . | . . . Machines Dismantled . | . . . Machines Sabotaged . | . . . Overloaded Fab Kills . | . . . Hacking | -11 -10 -10 --------- Run | Yrd Mat Min Machines Accessed 2 | . 2 . Terminals 2 | . 2 . Fabricators . | . . . Repair Stations . | . . . Recycling Units . | . . . Scanalyzers . | . . . Garrison Access . | . . . Total Hacks 2 | . 2 . Successful 1 | . 1 . Failed 1 | . 1 . Catastrophic . | . . . Database Lockouts . | . . . Manual . | . . . Terminals 2 | . 2 . Fabricators . | . . . Repair Stations . | . . . Recycling Units . | . . . Scanalyzers . | . . . Garrison Access . | . . . Terminal Hacks 1 | . 1 . Emergency Access Points 1 | . 1 . Fabricator Hacks . | . . . Repair Station Hacks . | . . . Recycling Unit Hacks . | . . . Scanalyzer . | . . . Garrison Access Hacks . | . . . Unauthorized Hacks . | . . . Terminals . | . . . Fabricators . | . . . Repair Stations . | . . . Recycling Units . | . . . Scanalyzers . | . . . Garrison Access . | . . . Data Cores Recovered . | . . . Used . | . . . Hacking Detections 1 | . 1 . Full Trace Events . | . . . Feedback Events . | . . . Feedback Blocked . | . . . Robot Schematics Acquired . | . . . Robots Built . | . . . Authchips . | . . . Time . | . . . Total Robot Build Rating . | . . . Part Schematics Acquired . | . . . Parts Built . | . . . Authchips . | . . . Time . | . . . Total Part Build Rating . | . . . Parts Repaired . | . . . Time . | . . . Parts Recycled . | . . . Recycled Matter . | . . . Retrieved Matter . | . . . Retrieved Components . | . . . Parts Scanalyzed . | . . . Part Schematics Acquired . | . . . Parts Damaged . | . . . Bothacking | -11 -10 -10 ------------ Run | Yrd Mat Min Used RIF Installer . | . . . Robots Hacked 6 | . 6 . Non-combat 4 | . 4 . Combat 2 | . 2 . Robot Hacks Applied 12 | . 12 . parse_system 7 | . 7 . no_distress 4 | . 4 . find_station 1 | . 1 . Relay Couplers Released . | . . . Fabnet Peak Effective % . | . . . Robots Rewired . | . . . Allies Hacked . | . . . Hacks Repelled . | . . . Allies | -11 -10 -10 -------- Run | Yrd Mat Min Total Allies . | . . . Largest Group . | . . . Highest-Rated Group . | . . . Highest-Rated Ally . | . . . Total Orders . | . . . Ally Attacks . | . . . Total Damage . | . . . Kills . | . . . Allies Corrupted . | . . . Allies Melted . | . . . Intel | -11 -10 -10 ------- Run | Yrd Mat Min Robot Analysis Total . | . . . Derelict Logs Recovered . | . . . Drone Launches . | . . . Drone Recoveries . | . . . Exploration | -11 -10 -10 ------------- Run | Yrd Mat Min Turns Passed 505 | 93 399 13 Spaces Moved 464 | 56 407 1 Core 23 | 23 . . Treads 41 | 33 8 . Legs 67 | . 66 1 Wheels . | . . . Hover . | . . . Flight 333 | . 333 . Fastest Speed 32 | 50 32 120 Average Speed 57 | 114 48 120 Slowest Speed 160 | 160 160 120 Overloaded Moves . | . . . Propulsion Burnouts . | . . . Robots Hopped . | . . . Cave-ins Triggered . | . . . Exploration Rate (%) 18 | 4 44 6 Regions Visited 2 Branch Regions 1 Pre-discovered Areas . | . . . Known Exits Taken . | . . . Unknown Exits Taken 2 | 1 1 . Scrap Searched . | . . . Spaces Dug . | . . . Terrain Destroyed 35 | . 8 27 Melee . | . . . Projectile . | . . . AOE 35 | . 8 27 Terrain Rammed . | . . . Walls Destroyed . | . . . Machines Disabled . | . . . Actions | -11 -10 -10 --------- Run | Yrd Mat Min Total 649 | 78 564 7 Wait 42 | . 42 . Move 462 | 55 406 1 Hop . | . . . Pick Up 29 | 13 16 . Fast Attach 4 | . 4 . Attach 18 | 6 12 . Detach 2 | . 2 . Swap 2 | . 2 . Drop 16 | . 16 . Fire 60 | 4 50 6 Melee 14 | . 14 . Ram . | . . . Kick . | . . . Crush . | . . . Escape Stasis . | . . . Rewire . | . . . Trap . | . . . Miscellaneous . | . . . Route ------- -11/Scrapyard -10/Materials (discovered 2 exits: [*Mat] / [*Min]) -10/Mines History --------- Turn | Location | Event 4 | -11/Scrapyard | Discovered new exit (range 15) 94 | -11/Scrapyard | Entered Materials 326 | -10/Materials | Discovered new exit (range 6) 451 | -10/Materials | Discovered new exit (range 16) 463 | -10/Materials | Lost 3 parts (1p1n1w) 493 | -10/Materials | Entered Mines 494 | -10/Mines | Assembled infested the area 499 | -10/Mines | Core integrity fell below 50% 503 | -10/Mines | Core integrity fell below 20% 506 | -10/Mines | Destroyed self with Mini Grenade Launcher Last Messages --------------- as-96055 destroyed. as-67493 destroyed. as-96773 destroyed. Destroyed Asb. Hover Unit. as-01548 destroyed. [Achievement: Quick And Dirty] Destroyed Asb. Hover Unit. Aluminum Leg destroyed. Terrain Scanner destroyed. as-17754 destroyed. Destroyed Asb. Hover Unit. as-31151 destroyed. as-86116 destroyed. as-72926 destroyed. Destroyed Asb. Hover Unit. Heat Sink destroyed. System corrupted by crushing effect (+4). System corrupted: Mni. Grenade Launcher failed to launch. as-91610 shuts down. Map ----- +----------------------------------------------------+ | | | | | | | | | | | | | | | | | ??????????????????????????????????? | | ??????????????????????????????????? | | ??????????????????????????????????? | | ??????????????????????????????????? | | ??????????????????????????????????? | | ????????????###?##????????????????? | | ???????????# ## ?????????????????? | | ????????### ?????????????????? | | ?????#### ??????????????????? | | ????## ???????????????????? | | ????# % ???????????????????? | | ????# ????????????????????? | | ???## #????????????????????? | | ??## ##???????????????????? | | ??# #???????????????????? | | ???# ##???????????????????? | | ????# #???????????????????? | | ??# a @t #????????????????????? | | ?##